[Event "15e Open International d'Echecs Mont de Marsan"]
[Site "Mont de Marsan, France"]
[Date "????.??.??"]
[Round "8.1"]
[White "PRIE, ERIC"]
[Black "JEREZ PEREZ, ALFONSO"]
[Result "1/2-1/2"]
[TimeControl "60 minutes + 30 secondes per move"]
[WhiteTitle "GM"]
[BlackTitle "IM"]
[WhiteElo "2482"]
[BlackElo "2418"]

1. d4 {[%clk 01:24:53]} {[%emt 00:06:06]} Nf6 {[%clk 01:30:34]} {[%emt
00:00:26]} 2. Bf4 {[%clk 01:25:17]} {[%emt 00:00:07]} g6 {[%clk 01:30:42]}
{[%emt 00:00:21]} 3. Nc3 {[%clk 01:25:38]} {[%emt 00:00:09]} d5 {[%clk
01:30:55]} {[%emt 00:00:18]} 4. e3 {[%clk 01:26:02]} {[%emt 00:00:07]} Bg7
{[%clk 01:30:51]} {[%emt 00:00:33]} 5. h4 {[%clk 01:26:23]} {[%emt 00:00:09]}
O-O {[%clk 01:29:29]} {[%emt 00:01:52]} 6. h5 {[%clk 01:26:47]} {[%emt
00:00:06]} Nxh5 {[%clk 01:29:33]} {[%emt 00:00:26]} 7. Rxh5 {[%clk 01:27:11]}
{[%emt 00:00:07]} gxh5 {[%clk 01:29:53]} {[%emt 00:00:09]} 8. Qxh5 {[%clk
01:27:34]} {[%emt 00:00:07]} e6 {[%clk 01:29:08]} {[%emt 00:01:15]} 9. Qh2
{[%clk 01:08:27]} {[%emt 00:19:37]} Na6 {[%clk 01:23:43]} {[%emt 00:05:55]} 10.
Bxa6 {[%clk 01:08:45]} {[%emt 00:00:13]} bxa6 {[%clk 01:24:10]} {[%emt
00:00:04]} 11. Bxc7 {[%clk 01:09:06]} {[%emt 00:00:08]} Qd7 {[%clk 01:23:08]}
{[%emt 00:01:31]} 12. O-O-O {[%clk 01:08:03]} {[%emt 00:01:33]} f6 {[%clk
01:22:58]} {[%emt 00:00:40]} 13. Bf4 {[%clk 01:08:09]} {[%emt 00:00:25]} Bb7
{[%clk 01:22:28]} {[%emt 00:01:00]} 14. Nge2 {[%clk 01:07:22]} {[%emt
00:01:17]} Rf7 {[%clk 01:21:50]} {[%emt 00:01:07]} 15. g4 {[%clk 01:05:34]}
{[%emt 00:02:18]} Bf8 {[%clk 01:15:33]} {[%emt 00:06:47]} 16. g5 {[%clk
01:05:28]} {[%emt 00:00:35]} fxg5 {[%clk 01:15:33]} {[%emt 00:00:31]} 17. Bxg5
{[%clk 01:04:49]} {[%emt 00:01:09]} Rg7 {[%clk 01:15:27]} {[%emt 00:00:36]} 18.
Bf4 {[%clk 00:58:41]} {[%emt 00:06:39]} Rd8 {[%clk 01:14:01]} {[%emt 00:01:55]}
19. Ng3 {[%clk 00:58:36]} {[%emt 00:00:35]} Bd6 {[%clk 01:10:50]} {[%emt
00:03:42]} 20. Nh5 {[%clk 00:58:17]} {[%emt 00:00:49]} Rg6 {[%clk 01:07:22]}
{[%emt 00:03:58]} 21. Ne2 {[%clk 00:48:13]} {[%emt 00:10:34]} Qe7 {[%clk
00:58:54]} {[%emt 00:08:58]} 22. Rh1 {[%clk 00:30:14]} {[%emt 00:18:28]} Bc6
{[%clk 00:49:48]} {[%emt 00:09:38]} 23. Bxd6 {[%clk 00:16:02]} {[%emt
00:14:42]} Rxd6 {[%clk 00:48:49]} {[%emt 00:01:28]} 24. Nef4 {[%clk 00:16:27]}
{[%emt 00:00:05]} Rg5 {[%clk 00:45:25]} {[%emt 00:03:54]} 25. Nd3 {[%clk
00:16:50]} {[%emt 00:00:07]} Be8 {[%clk 00:45:12]} {[%emt 00:00:44]} 26. Nf6+
{[%clk 00:17:06]} {[%emt 00:00:14]} Qxf6 {[%clk 00:41:08]} {[%emt 00:04:34]} 27.
Qxd6 {[%clk 00:17:29]} {[%emt 00:00:08]} Bg6 {[%clk 00:41:35]} {[%emt
00:00:02]} 28. Nf4 {[%clk 00:15:37]} {[%emt 00:02:22]} Be4 {[%clk 00:41:04]}
{[%emt 00:01:01]} 29. Qb8+ {[%clk 00:14:50]} {[%emt 00:01:17]} Kg7 {[%clk
00:40:52]} {[%emt 00:00:42]} 30. Qxa7+ {[%clk 00:15:04]} {[%emt 00:00:16]} Kh8
{[%clk 00:41:08]} {[%emt 00:00:14]} 31. Re1 {[%clk 00:14:47]} {[%emt 00:00:47]}
h5 {[%clk 00:41:07]} {[%emt 00:00:31]} 32. Qxa6 {[%clk 00:12:45]} {[%emt
00:02:32]} h4 {[%clk 00:41:27]} {[%emt 00:00:09]} 33. Qe2 {[%clk 00:11:57]}
{[%emt 00:01:19]} Bg2 {[%clk 00:39:56]} {[%emt 00:02:02]} 34. Rg1 {[%clk
00:09:10]} {[%emt 00:03:16]} h3 {[%clk 00:39:45]} {[%emt 00:00:42]} 35. Nxh3
{[%clk 00:08:48]} {[%emt 00:00:51]} Bxh3 {[%clk 00:40:06]} {[%emt 00:00:09]} 36.
Rxg5 {[%clk 00:08:09]} {[%emt 00:01:10]} Qxg5 {[%clk 00:40:30]} {[%emt
00:00:05]} 37. a4 {[%clk 00:07:04]} {[%emt 00:01:36]} Bf5 {[%clk 00:40:52]}
{[%emt 00:00:09]} 38. b3 {[%clk 00:06:52]} {[%emt 00:00:43]} Qd8 {[%clk
00:40:47]} {[%emt 00:00:34]} 39. Kb2 {[%clk 00:06:44]} {[%emt 00:00:37]} Qb6
{[%clk 00:40:45]} {[%emt 00:00:32]} 40. Qb5 {[%clk 00:06:03]} {[%emt 00:01:10]}
Qc7 {[%clk 00:40:44]} {[%emt 00:00:31]} 41. Qc5 {[%clk 00:06:10]} {[%emt
00:00:24]} Qb7 {[%clk 00:40:59]} {[%emt 00:00:15]} 42. a5 {[%clk 00:06:19]}
{[%emt 00:00:21]} Kg7 {[%clk 00:41:24]} {[%emt 00:00:04]} 43. Ka3 {[%clk
00:05:48]} {[%emt 00:01:03]} Kf7 {[%clk 00:41:28]} {[%emt 00:00:26]} 44. b4
{[%clk 00:05:12]} {[%emt 00:01:06]} Qa6 {[%clk 00:41:26]} {[%emt 00:00:31]} 45.
Qc7+ {[%clk 00:02:53]} {[%emt 00:02:50]} Kg6 {[%clk 00:40:37]} {[%emt
00:01:19]} 46. Qg3+ {[%clk 00:02:41]} {[%emt 00:00:43]} Kf7 {[%clk 00:40:27]}
{[%emt 00:00:39]} 47. Qc7+ {[%clk 00:03:03]} {[%emt 00:00:08]} Kg6 {[%clk
00:40:54]} {[%emt 00:00:03]} 48. Kb2 {[%clk 00:03:05]} {[%emt 00:00:29]} Qe2
{[%clk 00:40:44]} {[%emt 00:00:39]} 49. Qc6 {[%clk 00:03:05]} {[%emt 00:00:30]}
Qd2 {[%clk 00:35:41]} {[%emt 00:05:34]} 50. Qc5 {[%clk 00:03:04]} {[%emt
00:00:31]} Bd3 {[%clk 00:32:30]} {[%emt 00:03:41]} 51. b5 {[%clk 00:03:18]}
{[%emt 00:00:16]} Bc4 {[%clk 00:29:38]} {[%emt 00:03:22]} 52. a6 {[%clk
00:03:12]} {[%emt 00:00:36]} Qa5 {[%clk 00:29:36]} {[%emt 00:00:31]} 53. a7
{[%clk 00:03:27]} {[%emt 00:00:17]} Qa2+ {[%clk 00:29:50]} {[%emt 00:00:15]} 54.
Kc1 {[%clk 00:03:41]} {[%emt 00:00:15]} Qa1+ {[%clk 00:30:06]} {[%emt
00:00:13]} 55. Kd2 {[%clk 00:04:03]} {[%emt 00:00:09]} Qa5+ {[%clk 00:30:30]}
{[%emt 00:00:07]} 56. Kc1 {[%clk 00:04:08]} {[%emt 00:00:25]} Qa1+ {[%clk
00:30:56]} {[%emt 00:00:04]} 57. Kd2 {[%clk 00:04:34]} {[%emt 00:00:04]} Qa5+
{[%emt 00:00:40]} 1/2-1/2

[Event "15e Open International d'Echecs Mont de Marsan"]
[Site "Mont de Marsan, France"]
[Date "????.??.??"]
[Round "8.2"]
[White "BOGDANOV, EGOR"]
[Black "PENG LI, MIN"]
[Result "1/2-1/2"]
[TimeControl "60 minutes + 30 secondes per move"]
[WhiteTitle "IM"]
[BlackTitle "IM"]
[WhiteElo "2410"]
[BlackElo "2442"]

1. c4 {[%clk 01:30:57]} {[%emt 00:00:02]} Nf6 {[%clk 01:30:15]} {[%emt
00:00:45]} 2. Nc3 {[%clk 01:31:21]} {[%emt 00:00:06]} g6 {[%clk 01:30:37]}
{[%emt 00:00:08]} 3. e4 {[%clk 01:31:45]} {[%emt 00:00:06]} d6 {[%clk
01:31:02]} {[%emt 00:00:04]} 4. d4 {[%clk 01:32:09]} {[%emt 00:00:07]} Bg7
{[%clk 01:31:27]} {[%emt 00:00:05]} 5. Nf3 {[%clk 01:32:34]} {[%emt 00:00:04]}
O-O {[%clk 01:31:50]} {[%emt 00:00:07]} 6. Be2 {[%clk 01:32:55]} {[%emt
00:00:10]} e5 {[%clk 01:32:13]} {[%emt 00:00:07]} 7. O-O {[%clk 01:33:17]}
{[%emt 00:00:08]} Nc6 {[%clk 01:32:11]} {[%emt 00:00:31]} 8. d5 {[%clk
01:33:33]} {[%emt 00:00:15]} Ne7 {[%clk 01:32:30]} {[%emt 00:00:11]} 9. Ne1
{[%clk 01:33:56]} {[%emt 00:00:07]} Nd7 {[%clk 01:32:45]} {[%emt 00:00:14]} 10.
Be3 {[%clk 01:33:55]} {[%emt 00:00:32]} f5 {[%clk 01:33:07]} {[%emt 00:00:08]}
11. f3 {[%clk 01:34:19]} {[%emt 00:00:06]} f4 {[%clk 01:33:27]} {[%emt
00:00:09]} 12. Bf2 {[%clk 01:34:36]} {[%emt 00:00:13]} g5 {[%clk 01:33:50]}
{[%emt 00:00:07]} 13. Nd3 {[%clk 01:34:36]} {[%emt 00:00:30]} Ng6 {[%clk
01:27:08]} {[%emt 00:07:11]} 14. c5 {[%clk 01:34:51]} {[%emt 00:00:15]} Nf6
{[%clk 01:27:21]} {[%emt 00:00:16]} 15. Rc1 {[%clk 01:32:13]} {[%emt 00:03:08]}
Rf7 {[%clk 01:27:27]} {[%emt 00:00:25]} 16. b4 {[%clk 01:31:47]} {[%emt
00:00:56]} h5 {[%clk 01:22:32]} {[%emt 00:05:25]} 17. Qb3 {[%clk 01:30:13]}
{[%emt 00:02:04]} g4 {[%clk 01:17:48]} {[%emt 00:05:13]} 18. cxd6 {[%clk
01:30:36]} {[%emt 00:00:09]} cxd6 {[%clk 01:18:18]} 19. Nb5 {[%clk 01:30:55]}
{[%emt 00:00:10]} a6 {[%clk 01:17:21]} {[%emt 00:01:26]} 20. Nc7 {[%clk
01:31:11]} {[%emt 00:00:14]} Rxc7 {[%clk 01:15:49]} {[%emt 00:02:02]} 21. Bb6
{[%clk 01:31:36]} {[%emt 00:00:05]} Ne8 {[%clk 01:15:25]} {[%emt 00:00:53]} 22.
Rxc7 {[%clk 01:31:34]} {[%emt 00:00:33]} Nxc7 {[%clk 01:15:51]} {[%emt
00:00:04]} 23. Qc4 {[%clk 01:31:50]} {[%emt 00:00:14]} Qh4 {[%clk 01:15:48]}
{[%emt 00:00:32]} 24. Qxc7 {[%clk 01:32:09]} {[%emt 00:00:12]} Bf8 {[%clk
01:04:54]} {[%emt 00:11:22]} 25. Qd8 {[%clk 01:32:22]} {[%emt 00:00:18]} Qxd8
{[%clk 01:05:16]} {[%emt 00:00:09]} 26. Bxd8 {[%clk 01:32:49]} {[%emt
00:00:03]} Bd7 {[%clk 01:05:34]} {[%emt 00:00:11]} 27. Bb6 {[%clk 01:33:11]}
{[%emt 00:00:08]} Rc8 {[%clk 01:04:21]} {[%emt 00:01:44]} 28. Rc1 {[%clk
01:33:34]} {[%emt 00:00:07]} Rxc1+ {[%clk 01:04:44]} {[%emt 00:00:07]} 29. Nxc1
{[%clk 01:34:03]} Kf7 {[%clk 01:04:03]} {[%emt 00:01:10]} 30. Nb3 {[%clk
01:34:24]} {[%emt 00:00:09]} Ke8 {[%clk 01:03:15]} {[%emt 00:01:18]} 31. Na5
{[%clk 01:34:46]} {[%emt 00:00:09]} Bc8 {[%clk 01:03:35]} {[%emt 00:00:10]} 32.
Nc4 {[%clk 01:35:02]} {[%emt 00:00:13]} g3 {[%clk 00:55:39]} {[%emt 00:08:26]}
33. Ba5 {[%clk 01:34:40]} {[%emt 00:00:52]} 1/2-1/2

[Event "15e Open International d'Echecs Mont de Marsan"]
[Site "Mont de Marsan, France"]
[Date "????.??.??"]
[Round "8.3"]
[White "BERNAL MORO, LUIS JAVIER"]
[Black "JACKSON, THOMAS"]
[Result "1-0"]
[TimeControl "60 minutes + 30 secondes per move"]
[WhiteTitle "IM"]
[WhiteElo "2418"]
[BlackElo "2121"]

1. c4 {[%clk 01:27:51]} {[%emt 00:03:07]} Nf6 {[%clk 01:30:50]} {[%emt
00:00:09]} 2. Nc3 {[%clk 01:27:39]} {[%emt 00:00:44]} e6 {[%clk 01:31:13]}
{[%emt 00:00:07]} 3. e4 {[%clk 01:24:22]} {[%emt 00:03:47]} c5 {[%clk
01:31:37]} {[%emt 00:00:06]} 4. Nf3 {[%clk 01:22:52]} {[%emt 00:02:00]} Nc6
{[%clk 01:32:01]} {[%emt 00:00:07]} 5. Be2 {[%clk 01:21:07]} {[%emt 00:02:15]}
d5 {[%clk 01:23:29]} {[%emt 00:09:02]} 6. e5 {[%clk 01:09:34]} {[%emt
00:12:04]} Ng4 {[%clk 01:14:14]} {[%emt 00:09:44]} 7. cxd5 {[%clk 01:05:48]}
{[%emt 00:04:16]} exd5 {[%clk 01:13:14]} {[%emt 00:01:30]} 8. Bb5 {[%clk
01:06:08]} {[%emt 00:00:09]} d4 {[%clk 01:11:29]} {[%emt 00:02:15]} 9. Ne4
{[%clk 01:01:06]} {[%emt 00:05:33]} Qd5 {[%clk 01:07:08]} {[%emt 00:04:51]} 10.
Qe2 {[%clk 00:57:59]} {[%emt 00:03:36]} d3 {[%clk 00:57:32]} {[%emt 00:10:07]}
11. Nc3 {[%clk 00:36:02]} {[%emt 00:22:28]} Qe6 {[%clk 00:52:47]} {[%emt
00:05:14]} 12. Qe4 {[%clk 00:33:46]} {[%emt 00:02:46]} Bd7 {[%clk 00:50:13]}
{[%emt 00:03:04]} 13. O-O {[%clk 00:32:16]} {[%emt 00:01:59]} O-O-O {[%clk
00:39:19]} {[%emt 00:11:25]} 14. Re1 {[%clk 00:27:52]} {[%emt 00:04:54]} Na5
{[%clk 00:31:39]} {[%emt 00:08:09]} 15. Ng5 {[%clk 00:21:50]} {[%emt 00:06:33]}
Qe7 {[%clk 00:31:16]} {[%emt 00:00:53]} 16. Bxd7+ {[%clk 00:21:27]} {[%emt
00:00:52]} Qxd7 {[%clk 00:31:03]} {[%emt 00:00:43]} 17. e6 {[%clk 00:21:38]}
{[%emt 00:00:20]} Qd4 {[%clk 00:30:45]} {[%emt 00:00:47]} 18. Qxd4 {[%clk
00:15:44]} {[%emt 00:06:24]} cxd4 {[%clk 00:31:11]} {[%emt 00:00:04]} 19. Nce4
{[%clk 00:12:29]} {[%emt 00:03:46]} f5 {[%clk 00:31:21]} {[%emt 00:00:19]} 20.
Ng3 {[%clk 00:12:29]} {[%emt 00:00:30]} Be7 {[%clk 00:25:43]} {[%emt 00:06:07]}
21. Nf7 {[%clk 00:12:50]} {[%emt 00:00:09]} g6 {[%clk 00:25:59]} {[%emt
00:00:15]} 22. Nxh8 {[%clk 00:11:34]} {[%emt 00:01:46]} Rxh8 {[%clk 00:26:24]}
{[%emt 00:00:04]} 23. b3 {[%clk 00:11:38]} {[%emt 00:00:26]} Nc6 {[%clk
00:25:07]} {[%emt 00:01:47]} 24. Bb2 {[%clk 00:10:50]} {[%emt 00:01:19]} Rd8
{[%clk 00:24:28]} {[%emt 00:01:08]} 25. f3 {[%clk 00:07:34]} {[%emt 00:03:46]}
Nf6 {[%clk 00:23:44]} {[%emt 00:01:13]} 26. Nh1 {[%clk 00:07:48]} {[%emt
00:00:16]} Nd5 {[%clk 00:23:30]} {[%emt 00:00:44]} 27. Nf2 {[%clk 00:08:09]}
{[%emt 00:00:10]} Ndb4 {[%clk 00:22:58]} {[%emt 00:01:02]} 28. Ba3 {[%clk
00:07:39]} {[%emt 00:01:00]} Bg5 {[%clk 00:21:31]} {[%emt 00:01:56]} 29. Bxb4
{[%clk 00:07:46]} {[%emt 00:00:24]} Nxb4 {[%clk 00:21:55]} {[%emt 00:00:05]} 30.
Red1 {[%clk 00:06:31]} {[%emt 00:01:46]} Re8 {[%clk 00:18:37]} {[%emt
00:03:48]} 31. a3 {[%clk 00:06:42]} {[%emt 00:00:19]} Nd5 {[%clk 00:19:03]}
{[%emt 00:00:03]} 32. Nxd3 {[%clk 00:07:02]} {[%emt 00:00:11]} Rxe6 {[%clk
00:19:30]} {[%emt 00:00:03]} 33. Rac1+ {[%clk 00:05:35]} {[%emt 00:01:57]} Kd8
{[%clk 00:19:37]} {[%emt 00:00:23]} 34. Rc4 {[%clk 00:05:16]} {[%emt 00:00:50]}
Bf6 {[%clk 00:19:18]} {[%emt 00:00:48]} 35. Kf2 {[%clk 00:04:53]} {[%emt
00:00:52]} Nb6 {[%clk 00:17:26]} {[%emt 00:02:22]} 36. Rc2 {[%clk 00:04:59]}
{[%emt 00:00:24]} Be7 {[%clk 00:17:28]} {[%emt 00:00:29]} 37. a4 {[%clk
00:05:17]} {[%emt 00:00:12]} Rc6 {[%clk 00:16:30]} {[%emt 00:01:27]} 38. Rdc1
{[%clk 00:04:09]} {[%emt 00:01:39]} Kc7 {[%clk 00:15:00]} {[%emt 00:02:00]} 39.
Ne5 {[%clk 00:04:06]} {[%emt 00:00:32]} Rxc2 {[%clk 00:15:24]} {[%emt
00:00:06]} 40. Rxc2+ {[%clk 00:04:34]} {[%emt 00:00:02]} Kd6 {[%clk 00:15:43]}
{[%emt 00:00:10]} 41. Nc4+ {[%clk 00:04:40]} {[%emt 00:00:25]} Kd7 {[%clk
00:15:35]} {[%emt 00:00:38]} 42. Nxb6+ {[%clk 00:05:02]} {[%emt 00:00:09]} axb6
{[%clk 00:15:59]} {[%emt 00:00:06]} 43. Ke2 {[%clk 00:05:26]} {[%emt 00:00:06]}
1-0

[ePGN "0.1;DGT LiveChess/2.2.3"]

[Event "15e Open International d'Echecs Mont de Marsan"]
[Site "Mont de Marsan, France"]
[Date "????.??.??"]
[Round "9.1"]
[White "PRIE, ERIC"]
[Black "BERNAL MORO, LUIS JAVIER"]
[Result "0-1"]
[TimeControl "60 minutes + 30 secondes per move"]
[WhiteTitle "GM"]
[BlackTitle "IM"]
[WhiteElo "2482"]
[BlackElo "2418"]

1. d4 {[%clk 01:30:58]} Nf6 {[%clk 01:30:53]} {[%emt 00:00:07]} 2. Bf4 {[%clk
01:31:24]} g6 {[%clk 01:30:53]} 3. Nc3 {[%clk 01:31:24]} d5 {[%clk 01:30:36]}
{[%emt 00:01:30]} 4. e3 {[%clk 01:32:07]} {[%emt 00:00:07]} Bg7 {[%clk
01:31:00]} {[%emt 00:00:08]} 5. h4 {[%clk 01:32:30]} {[%emt 00:00:07]} h5
{[%clk 01:27:43]} {[%emt 00:03:47]} 6. Nf3 {[%clk 01:32:50]} {[%emt 00:00:09]}
O-O {[%clk 01:24:23]} {[%emt 00:03:51]} 7. Qd2 {[%clk 01:33:12]} {[%emt
00:00:08]} c5 {[%clk 01:22:23]} {[%emt 00:02:31]} 8. Ne5 {[%clk 01:33:32]}
{[%emt 00:00:08]} cxd4 {[%clk 01:20:49]} {[%emt 00:02:04]} 9. exd4 {[%clk
01:33:52]} {[%emt 00:00:10]} Nc6 {[%clk 01:21:07]} {[%emt 00:00:12]} 10. f3
{[%clk 01:33:22]} {[%emt 00:00:59]} Nd7 {[%clk 01:12:40]} {[%emt 00:08:58]} 11.
Nxd5 {[%clk 01:32:43]} {[%emt 00:01:09]} Ndb8 {[%clk 00:58:32]} {[%emt
00:14:38]} 12. Nb4 {[%clk 01:16:21]} {[%emt 00:16:51]} Nxd4 {[%clk 00:48:14]}
{[%emt 00:10:49]} 13. O-O-O {[%clk 01:14:07]} {[%emt 00:02:43]} a5 {[%clk
00:47:20]} {[%emt 00:01:24]} 14. Qxd4 {[%clk 01:10:51]} {[%emt 00:03:46]} Qxd4
{[%clk 00:47:11]} {[%emt 00:00:39]} 15. Rxd4 {[%clk 01:11:09]} {[%emt
00:00:12]} axb4 {[%clk 00:47:37]} {[%emt 00:00:04]} 16. Rxb4 {[%clk 00:49:26]}
{[%emt 00:22:12]} Rxa2 {[%clk 00:44:53]} {[%emt 00:03:15]} 17. Kb1 {[%clk
00:47:54]} {[%emt 00:02:01]} Ra7 {[%clk 00:40:51]} {[%emt 00:04:21]} 18. Be3
{[%clk 00:23:32]} {[%emt 00:25:03]} Ra8 {[%clk 00:38:54]} {[%emt 00:02:27]} 19.
Rb5 {[%clk 00:22:01]} {[%emt 00:02:01]} Nc6 {[%clk 00:24:06]} {[%emt 00:15:19]}
20. Nxc6 {[%clk 00:22:09]} {[%emt 00:00:22]} bxc6 {[%clk 00:23:27]} {[%emt
00:01:09]} 21. Rb6 {[%clk 00:21:59]} {[%emt 00:00:39]} Be6 {[%clk 00:23:30]}
{[%emt 00:00:27]} 22. Ba6 {[%clk 00:18:28]} {[%emt 00:04:01]} Rfb8 {[%clk
00:20:12]} {[%emt 00:03:49]} 23. Rxb8+ {[%emt 00:00:06]} Rxb8 {[%emt 00:00:03]}
24. Bc1 {[%clk 00:18:42]} {[%emt 00:00:06]} Rb6 {[%clk 00:17:20]} {[%emt
00:03:23]} 25. Be2 {[%clk 00:17:42]} {[%emt 00:01:29]} c5 {[%clk 00:17:37]}
{[%emt 00:00:13]} 26. Rd1 {[%clk 00:14:40]} {[%emt 00:03:31]} c4 {[%clk
00:16:10]} {[%emt 00:01:57]} 27. Rd8+ {[%clk 00:14:52]} {[%emt 00:00:17]} Kh7
{[%clk 00:16:35]} {[%emt 00:00:06]} 28. Ka1 {[%clk 00:14:36]} {[%emt 00:00:47]}
Rb7 {[%clk 00:10:21]} {[%emt 00:06:46]} 29. Ra8 {[%clk 00:14:03]} {[%emt
00:01:01]} c3 {[%clk 00:07:45]} {[%emt 00:03:06]} 30. b3 {[%clk 00:13:45]}
{[%emt 00:00:48]} Bf5 {[%clk 00:07:59]} {[%emt 00:00:17]} 31. Ra2 {[%clk
00:13:48]} {[%emt 00:00:26]} Rb6 {[%clk 00:08:13]} {[%emt 00:00:17]} 32. Ra6
{[%clk 00:06:12]} {[%emt 00:08:06]} Rxa6+ {[%clk 00:04:43]} {[%emt 00:04:00]}
33. Bxa6 {[%clk 00:06:35]} {[%emt 00:00:06]} Bxc2 {[%clk 00:05:10]} {[%emt
00:00:03]} 34. Bc4 {[%clk 00:06:58]} {[%emt 00:00:07]} f5 {[%clk 00:01:57]}
{[%emt 00:03:44]} 35. b4 {[%clk 00:07:01]} {[%emt 00:00:27]} Bd4 {[%clk
00:01:59]} {[%emt 00:00:28]} 36. b5 {[%clk 00:07:17]} {[%emt 00:00:13]} e5
{[%clk 00:02:13]} {[%emt 00:00:17]} 37. Ka2 {[%clk 00:06:31]} {[%emt 00:01:17]}
e4 {[%clk 00:02:02]} {[%emt 00:00:40]} 38. Bf4 {[%clk 00:06:45]} {[%emt
00:00:15]} Bd1 {[%clk 00:01:26]} {[%emt 00:01:07]} 39. fxe4 {[%clk 00:03:15]}
{[%emt 00:04:00]} fxe4 {[%clk 00:01:47]} {[%emt 00:00:09]} 40. Bb3 {[%clk
00:03:39]} {[%emt 00:00:05]} c2 {[%clk 00:02:05]} {[%emt 00:00:13]} 41. b6
{[%clk 00:04:04]} {[%emt 00:00:06]} Bxb6 {[%clk 00:01:38]} {[%emt 00:00:57]} 42.
Kb2 {[%clk 00:04:27]} {[%emt 00:00:07]} e3 {[%clk 00:00:49]} {[%emt 00:01:19]}
43. Bxc2 {[%clk 00:04:25]} {[%emt 00:00:32]} e2 {[%clk 00:01:13]} {[%emt
00:00:06]} 44. Bd2 {[%clk 00:03:06]} {[%emt 00:01:49]} Bf2 {[%clk 00:01:22]}
{[%emt 00:00:20]} 45. g4 {[%clk 00:03:31]} {[%emt 00:00:05]} Bxc2 {[%clk
00:01:37]} {[%emt 00:00:16]} 46. Kxc2 {[%clk 00:03:41]} {[%emt 00:00:20]} hxg4
{[%clk 00:01:55]} {[%emt 00:00:12]} 0-1

[Event "15e Open International d'Echecs Mont de Marsan"]
[Site "Mont de Marsan, France"]
[Date "????.??.??"]
[Round "9.2"]
[White "PENG LI, MIN"]
[Black "ETCHEGARAY, PATRICE"]
[Result "1-0"]
[TimeControl "60 minutes + 30 secondes per move"]
[WhiteTitle "IM"]
[BlackTitle "IM"]
[WhiteElo "2442"]
[BlackElo "2325"]

1. e4 {[%clk 01:30:57]} {[%emt 00:00:02]} e5 {[%clk 01:28:14]} {[%emt
00:02:45]} 2. Nf3 {[%clk 01:28:42]} {[%emt 00:02:46]} Nc6 {[%clk 01:27:58]}
{[%emt 00:00:45]} 3. Bc4 {[%clk 01:28:05]} {[%emt 00:01:08]} Nf6 {[%clk
01:27:12]} {[%emt 00:01:15]} 4. d4 {[%clk 01:26:01]} {[%emt 00:02:34]} exd4
{[%clk 01:26:36]} {[%emt 00:01:06]} 5. e5 {[%clk 01:26:20]} {[%emt 00:00:12]}
d5 {[%clk 01:24:36]} {[%emt 00:02:29]} 6. Bb5 {[%clk 01:26:46]} {[%emt
00:00:05]} Ne4 {[%clk 01:24:26]} {[%emt 00:00:38]} 7. Nxd4 {[%clk 01:27:11]}
{[%emt 00:00:06]} Bd7 {[%clk 01:24:35]} {[%emt 00:00:21]} 8. Bxc6 {[%clk
01:27:38]} {[%emt 00:00:04]} bxc6 {[%clk 01:24:50]} {[%emt 00:00:14]} 9. O-O
{[%clk 01:28:05]} {[%emt 00:00:04]} Bc5 {[%clk 01:23:36]} {[%emt 00:01:43]} 10.
f3 {[%clk 01:28:33]} {[%emt 00:00:03]} Ng5 {[%clk 01:23:51]} {[%emt 00:00:14]}
11. f4 {[%clk 01:29:01]} {[%emt 00:00:03]} Ne4 {[%clk 01:23:32]} {[%emt
00:00:48]} 12. Be3 {[%clk 01:29:26]} {[%emt 00:00:05]} Qe7 {[%clk 01:20:56]}
{[%emt 00:03:05]} 13. Nd2 {[%clk 01:27:21]} {[%emt 00:02:35]} Nxd2 {[%clk
01:10:38]} {[%emt 00:10:49]} 14. Qxd2 {[%clk 01:27:49]} {[%emt 00:00:03]} Bb6
{[%clk 01:08:28]} {[%emt 00:02:39]} 15. Nb3 {[%clk 01:25:56]} {[%emt 00:02:23]}
O-O {[%clk 01:06:42]} {[%emt 00:02:15]} 16. Rae1 {[%clk 01:19:26]} {[%emt
00:07:01]} Bf5 {[%clk 00:56:24]} {[%emt 00:10:48]} 17. Qc3 {[%clk 01:16:24]}
{[%emt 00:03:31]} Qd7 {[%clk 00:55:29]} {[%emt 00:01:26]} 18. Bc5 {[%clk
01:15:21]} {[%emt 00:01:30]} Rfe8 {[%clk 00:49:24]} {[%emt 00:06:38]} 19. Nd4
{[%clk 01:13:40]} {[%emt 00:02:11]} Rab8 {[%clk 00:45:31]} {[%emt 00:04:24]} 20.
b4 {[%clk 01:11:55]} {[%emt 00:02:15]} Bxc5 {[%clk 00:34:08]} {[%emt 00:11:54]}
21. Qxc5 {[%clk 01:12:20]} {[%emt 00:00:05]} Rb6 {[%clk 00:34:26]} {[%emt
00:00:12]} 22. a4 {[%clk 01:11:34]} {[%emt 00:01:15]} Be4 {[%clk 00:26:27]}
{[%emt 00:08:28]} 23. a5 {[%clk 01:11:45]} {[%emt 00:00:20]} Ra6 {[%clk
00:26:23]} {[%emt 00:00:34]} 24. Re3 {[%clk 01:11:31]} {[%emt 00:00:44]} f6
{[%clk 00:22:27]} {[%emt 00:04:26]} 25. Nb3 {[%clk 01:08:55]} {[%emt 00:03:05]}
fxe5 {[%clk 00:16:20]} {[%emt 00:06:38]} 26. Rxe4 {[%clk 01:09:09]} {[%emt
00:00:16]} dxe4 {[%clk 00:16:16]} {[%emt 00:00:34]} 27. Qc4+ {[%clk 01:09:36]}
{[%emt 00:00:03]} Qd5 {[%clk 00:16:08]} {[%emt 00:00:38]} 28. Qxa6 {[%clk
01:09:58]} {[%emt 00:00:08]} exf4 {[%clk 00:16:19]} {[%emt 00:00:18]} 29. Rxf4
{[%clk 01:06:30]} {[%emt 00:03:58]} Qd1+ {[%clk 00:15:14]} {[%emt 00:01:36]} 30.
Qf1 {[%clk 01:06:56]} {[%emt 00:00:04]} Qxc2 {[%clk 00:15:32]} {[%emt
00:00:13]} 31. Nc5 {[%clk 01:06:03]} {[%emt 00:01:22]} h6 {[%clk 00:14:51]}
{[%emt 00:01:11]} 32. Nxe4 {[%clk 01:01:22]} {[%emt 00:05:11]} Rd8 {[%clk
00:10:15]} {[%emt 00:05:06]} 33. Nf2 {[%clk 01:01:44]} {[%emt 00:00:08]} Qd2
{[%clk 00:10:28]} {[%emt 00:00:18]} 34. Qc4+ {[%clk 01:01:31]} {[%emt
00:00:43]} Kh8 {[%clk 00:10:51]} {[%emt 00:00:06]} 35. h3 {[%clk 01:01:51]}
{[%emt 00:00:10]} 1-0